[Event "FIDE Womens Grand Swiss 2021"]
[Site "Riga"]
[Date "2021.10.27"]
[Round "1.12"]
[White "Paehtz, Elisabeth"]
[Black "Cori T., Deysi"]
[Result "1-0"]
[ECO "A81"]
[WhiteElo "2475"]
[BlackElo "2382"]
[Annotator "ChessBase"]
[PlyCount "143"]
[EventDate "2021.10.27"]
[EventType "swiss"]
[EventCountry "LAT"]
[Tiebreak "Cut1 Buchholz+Sonneborn-Berger (Swiss)"]
[SourceTitle "playchess.com"]
[Source "ChessBase"]
[SourceQuality "1"]
[TimeControl "40/6000+30:20/3000+30:900+30"]

1. d4 {[%emt 0:10:03]} f5 {[%emt 0:10:56]} 2. g3 {[%emt 0:02:18]} d6 {[%emt 0:
02:26]} 3. Bg2 {[%emt 0:01:42]} Nf6 {[%emt 0:00:26]} 4. Nf3 {[%emt 0:03:44]} g6
{[%emt 0:01:47]} 5. O-O {[%emt 0:00:06]} Bg7 {[%emt 0:00:02]} 6. b3 {[%emt 0:
00:17]} O-O {[%emt 0:00:50]} 7. Bb2 {[%emt 0:00:04]} c6 {[%emt 0:04:05]} 8.
Nbd2 {[%emt 0:02:05]} Na6 {[%emt 0:14:00]} 9. c4 {[%emt 0:15:53]} e5 {[%emt 0:
03:19]} 10. dxe5 {[%emt 0:00:24]} Nd7 {[%emt 0:00:44]} 11. Qc2 {[%emt 0:09:46]}
dxe5 {[%emt 0:05:51]} 12. e4 {[%emt 0:00:57]} Nb4 {[%emt 0:05:14]} 13. Qc3 {
[%emt 0:12:24]} c5 {[%emt 0:00:29]} 14. exf5 {[%emt 0:08:07]} gxf5 {[%emt 0:00:
18]} 15. Nh4 {[%emt 0:02:52]} Rf7 {[%emt 0:20:19]} 16. Qe3 {[%emt 0:00:58]} Nf6
{[%emt 0:04:36]} 17. Rad1 {[%emt 0:08:34]} Ng4 {[%emt 0:04:09]} 18. Qe2 {
[%emt 0:23:52]} Qd3 {[%emt 0:01:48]} 19. Bf3 {[%emt 0:00:13]} Bd7 {[%emt 0:16:
31]} 20. a3 {[%emt 0:02:07]} Qxe2 {[%emt 0:01:40]} 21. Bxe2 {[%emt 0:00:03]}
Nc2 {[%emt 0:03:29]} 22. Bf3 {[%emt 0:03:32]} Bc6 {[%emt 0:01:50]} 23. Bxc6 {
[%emt 0:00:49]} bxc6 {[%emt 0:00:01]} 24. h3 {[%emt 0:00:04]} Nh6 {[%emt 0:00:
11]} 25. Ndf3 {[%emt 0:00:38]} e4 {[%emt 0:02:36]} 26. Bxg7 {[%emt 0:00:04]}
Rxg7 {[%emt 0:00:28]} 27. Rd2 {[%emt 0:00:14]} Nxa3 {[%emt 0:01:48]} 28. Ne5 {
[%emt 0:00:37]} Re7 {[%emt 0:03:09]} 29. Nxc6 {[%emt 0:01:12]} Re6 {[%emt 0:00:
21]} 30. Na5 {[%emt 0:00:17]} e3 {[%emt 0:01:00]} 31. Ra2 {[%emt 0:00:23]} Rd8
{[%emt 0:00:49]} 32. Rxa3 {[%emt 0:00:32]} f4 {[%emt 0:00:35]} 33. fxe3 {
[%emt 0:00:48]} Rxe3 {[%emt 0:00:01]} 34. Ra2 {[%emt 0:00:07]} fxg3 {[%emt 0:
00:18]} 35. Kg2 {[%emt 0:00:57]} Rd4 {[%emt 0:01:20]} 36. Nf5 {[%emt 0:00:31]}
Nxf5 {[%emt 0:00:06]} 37. Rxf5 {[%emt 0:00:03]} Rd1 {[%emt 0:00:34]} 38. Rg5+ {
[%emt 0:00:13]} Kh8 {[%emt 0:00:15]} 39. Rxg3 {[%emt 0:00:13]} Ree1 {[%emt 0:
00:01]} 40. Rg4 {[%emt 0:01:38]} h5 {[%emt 0:00:01]} 41. Rf4 {[%emt 0:24:49]}
Rg1+ {[%emt 0:22:51]} 42. Kf3 {[%emt 0:03:00]} Rd3+ {[%emt 0:00:32]} 43. Ke4 {
[%emt 0:01:35]} Rd4+ {[%emt 0:00:19]} 44. Kf5 {[%emt 0:05:03]} Rd8 {[%emt 0:00:
10]} 45. Re2 {[%emt 0:03:50]} Rg3 {[%emt 0:02:59]} 46. Re5 {[%emt 0:02:24]} Kg7
{[%emt 0:01:03]} 47. Rxc5 {[%emt 0:01:11]} a6 {[%emt 0:02:21]} 48. Ke4 {
[%emt 0:02:48]} Rxh3 {[%emt 0:00:27]} 49. Rd5 {[%emt 0:01:02]} Re8+ {[%emt 0:
00:25]} 50. Kd4 {[%emt 0:00:07]} Kg6 {[%emt 0:01:13]} 51. c5 {[%emt 0:02:10]}
Rh1 {[%emt 0:02:51]} 52. c6 {[%emt 0:00:47]} Rb8 {[%emt 0:01:06]} 53. Nb7 {
[%emt 0:02:21]} h4 {[%emt 0:01:01]} 54. Rg4+ {[%emt 0:00:59]} Kf6 {[%emt 0:01:
36]} 55. Rh5 {[%emt 0:00:46]} h3 {[%emt 0:00:19]} 56. Rgh4 {[%emt 0:00:13]} Rc8
{[%emt 0:02:03]} 57. Rxh3 {[%emt 0:01:24]} Rd1+ {[%emt 0:00:06]} 58. Rd3 {
[%emt 0:00:23]} Rc1 {[%emt 0:00:09]} 59. Nc5 {[%emt 0:01:22]} Ke7 {[%emt 0:00:
46]} 60. Rh7+ {[%emt 0:01:16]} Kd6 {[%emt 0:00:36]} 61. Rh6+ {[%emt 0:15:30]}
Kc7 {[%emt 0:15:09]} 62. Nxa6+ {[%emt 0:00:15]} Kb6 {[%emt 0:00:01]} 63. Nb4 {
[%emt 0:00:07]} Kb5 {[%emt 0:00:26]} 64. Nd5 {[%emt 0:00:43]} Rd8 {[%emt 0:02:
40]} 65. Re6 {[%emt 0:01:15]} Rc2 {[%emt 0:01:34]} 66. Ke4 {[%emt 0:01:14]} Rh8
{[%emt 0:01:16]} 67. c7 {[%emt 0:00:26]} Rh4+ {[%emt 0:00:36]} 68. Ke5 {
[%emt 0:00:29]} Rh5+ {[%emt 0:01:44]} 69. Kd4 {[%emt 0:00:11]} Rh4+ {[%emt 0:
01:42]} 70. Re4 {[%emt 0:00:04]} Rh8 {[%emt 0:00:03]} 71. Rc3 {[%emt 0:00:36]}
Rd2+ {[%emt 0:00:21]} 72. Ke3 {[%emt 0:00:30]} 1-0

[Event "FIDE Womens Grand Swiss 2021"]
[Site "Riga"]
[Date "2021.10.27"]
[Round "1.13"]
[White "Houska, Jovanka"]
[Black "Pogonina, Natalija"]
[Result "0-1"]
[ECO "D37"]
[WhiteElo "2381"]
[BlackElo "2467"]
[Annotator "ChessBase"]
[PlyCount "82"]
[EventDate "2021.10.27"]
[EventType "swiss"]
[EventCountry "LAT"]
[Tiebreak "Cut1 Buchholz+Sonneborn-Berger (Swiss)"]
[SourceTitle "playchess.com"]
[Source "ChessBase"]
[SourceQuality "1"]
[TimeControl "40/6000+30:20/3000+30:900+30"]

1. d4 {[%emt 0:10:04]} Nf6 {[%emt 0:10:05]} 2. Nf3 {[%emt 0:00:05]} d5 {
[%emt 0:00:24]} 3. c4 {[%emt 0:00:28]} e6 {[%emt 0:00:10]} 4. Nc3 {[%emt 0:00:
05]} Nbd7 {[%emt 0:01:29]} 5. Bf4 {[%emt 0:04:22]} dxc4 {[%emt 0:00:59]} 6. e3
{[%emt 0:00:27]} Bd6 {[%emt 0:00:55]} 7. Bg3 {[%emt 0:01:34]} Nb6 {[%emt 0:08:
28]} 8. Nd2 {[%emt 0:05:49]} Bd7 {[%emt 0:07:56]} 9. Nxc4 {[%emt 0:08:38]} Nxc4
{[%emt 0:09:25]} 10. Bxc4 {[%emt 0:00:06]} Bxg3 {[%emt 0:00:11]} 11. hxg3 {
[%emt 0:00:16]} Bc6 {[%emt 0:00:37]} 12. f3 {[%emt 0:05:15]} Qd6 {[%emt 0:05:
00]} 13. Kf2 {[%emt 0:03:04]} O-O-O {[%emt 0:04:19]} 14. Qc2 {[%emt 0:03:48]}
h5 {[%emt 0:04:04]} 15. Rac1 {[%emt 0:15:25]} Kb8 {[%emt 0:01:31]} 16. Bb5 {
[%emt 0:03:58]} Bd7 {[%emt 0:05:11]} 17. Bxd7 {[%emt 0:19:06]} Rxd7 {[%emt 0:
02:37]} 18. Nb5 {[%emt 0:03:10]} Qa6 {[%emt 0:09:42]} 19. Na3 {[%emt 0:05:50]}
Rc8 {[%emt 0:05:32]} 20. Qe2 {[%emt 0:00:18]} Qd6 {[%emt 0:04:59]} 21. Nc4 {
[%emt 0:01:48]} Qe7 {[%emt 0:00:43]} 22. Ne5 {[%emt 0:00:45]} Rd5 {[%emt 0:00:
23]} 23. b4 {[%emt 0:01:06]} Nd7 {[%emt 0:03:12]} 24. Nd3 {[%emt 0:01:14]} g6 {
[%emt 0:01:45]} 25. Rhd1 {[%emt 0:10:10]} h4 {[%emt 0:03:05]} 26. g4 {[%emt 0:
00:04]} e5 {[%emt 0:03:22]} 27. dxe5 {[%emt 0:01:24]} Nxe5 {[%emt 0:00:32]} 28.
Nc5 {[%emt 0:00:47]} Rcd8 {[%emt 0:08:59]} 29. f4 {[%emt 0:00:50]} Rxd1 {
[%emt 0:05:01]} 30. Rxd1 {[%emt 0:00:04]} Rxd1 {[%emt 0:00:12]} 31. Qxd1 {
[%emt 0:00:04]} Nc4 {[%emt 0:00:52]} 32. Qd4 {[%emt 0:01:33]} Nd6 {[%emt 0:00:
05]} 33. Qh8+ {[%emt 0:01:41]} Nc8 {[%emt 0:00:05]} 34. g5 {[%emt 0:01:03]} b6
{[%emt 0:01:44]} 35. Nd3 {[%emt 0:00:04]} Qe6 {[%emt 0:00:48]} 36. Qd8 {
[%emt 0:03:24]} Qxa2+ {[%emt 0:01:17]} 37. Kf3 {[%emt 0:00:03]} Kb7 {[%emt 0:
01:35]} 38. Ne5 {[%emt 0:00:31]} Nd6 {[%emt 0:00:47]} 39. Qd7 {[%emt 0:01:05]}
Qd5+ {[%emt 0:00:59]} 40. Kf2 {[%emt 0:00:06]} Qd2+ {[%emt 0:00:46]} 41. Kf1 {
[%emt 0:28:38]} Qd1+ {[%emt 0:20:16]} 0-1

[Event "FIDE Womens Grand Swiss 2021"]
[Site "Riga"]
[Date "2021.10.27"]
[Round "1.15"]
[White "Padmini, Rout"]
[Black "Zhu, Jiner"]
[Result "0-1"]
[ECO "C92"]
[WhiteElo "2380"]
[BlackElo "2455"]
[Annotator "ChessBase"]
[PlyCount "90"]
[EventDate "2021.10.27"]
[EventType "swiss"]
[EventCountry "LAT"]
[Tiebreak "Cut1 Buchholz+Sonneborn-Berger (Swiss)"]
[SourceTitle "playchess.com"]
[Source "ChessBase"]
[SourceQuality "1"]
[TimeControl "40/6000+30:20/3000+30:900+30"]

1. e4 {[%emt 0:10:10]} e5 {[%emt 0:10:17]} 2. Nf3 {[%emt 0:00:28]} Nc6 {
[%emt 0:00:08]} 3. Bb5 {[%emt 0:00:12]} a6 {[%emt 0:00:18]} 4. Ba4 {[%emt 0:00:
06]} Nf6 {[%emt 0:00:11]} 5. O-O {[%emt 0:00:10]} Be7 {[%emt 0:00:15]} 6. Re1 {
[%emt 0:00:13]} b5 {[%emt 0:00:09]} 7. Bb3 {[%emt 0:00:03]} O-O {[%emt 0:00:17]
} 8. h3 {[%emt 0:00:28]} d6 {[%emt 0:00:18]} 9. c3 {[%emt 0:00:21]} Bb7 {
[%emt 0:00:35]} 10. d4 {[%emt 0:00:56]} h6 {[%emt 0:08:27]} 11. Nbd2 {[%emt 0:
03:53]} Re8 {[%emt 0:01:42]} 12. Nf1 {[%emt 0:03:44]} Bf8 {[%emt 0:05:14]} 13.
Ng3 {[%emt 0:00:23]} g6 {[%emt 0:01:43]} 14. Nh4 {[%emt 0:18:24]} d5 {[%emt 0:
24:46]} 15. exd5 {[%emt 0:07:34]} Nxd5 {[%emt 0:00:12]} 16. Nf3 {[%emt 0:05:15]
} Nb6 {[%emt 0:18:51]} 17. Qc2 {[%emt 0:09:02]} Nc4 {[%emt 0:01:38]} 18. Bxc4 {
[%emt 0:04:18]} bxc4 {[%emt 0:00:08]} 19. dxe5 {[%emt 0:00:26]} Bg7 {[%emt 0:
05:55]} 20. Bf4 {[%emt 0:06:37]} Qd3 {[%emt 0:03:57]} 21. Qxd3 {[%emt 0:03:50]}
cxd3 {[%emt 0:00:06]} 22. Ne4 {[%emt 0:00:23]} g5 {[%emt 0:07:36]} 23. Bh2 {
[%emt 0:05:10]} Rad8 {[%emt 0:02:29]} 24. Nc5 {[%emt 0:11:22]} Bc8 {[%emt 0:00:
30]} 25. Rad1 {[%emt 0:05:33]} Rd5 {[%emt 0:00:23]} 26. b4 {[%emt 0:01:04]} a5
{[%emt 0:04:50]} 27. a3 {[%emt 0:03:25]} Bf5 {[%emt 0:02:29]} 28. Na6 {[%emt 0:
05:15]} Re7 {[%emt 0:02:09]} 29. Re3 {[%emt 0:00:08]} Kf8 {[%emt 0:01:28]} 30.
g4 {[%emt 0:02:48]} Bg6 {[%emt 0:00:10]} 31. c4 {[%emt 0:03:17]} Rd8 {[%emt 0:
00:32]} 32. e6 {[%emt 0:00:16]} axb4 {[%emt 0:01:00]} 33. axb4 {[%emt 0:00:13]}
Bd4 {[%emt 0:06:25]} 34. Nxd4 {[%emt 0:01:24]} Nxd4 {[%emt 0:01:14]} 35. Nxc7 {
[%emt 0:00:11]} Nc2 {[%emt 0:00:46]} 36. Rexd3 {[%emt 0:00:48]} Rxd3 {[%emt 0:
00:44]} 37. Rxd3 {[%emt 0:00:21]} Bxd3 {[%emt 0:00:05]} 38. Bd6 {[%emt 0:00:35]
} Bxc4 {[%emt 0:00:10]} 39. b5 {[%emt 0:00:06]} Nd4 {[%emt 0:00:49]} 40. b6 {
[%emt 0:00:05]} fxe6 {[%emt 0:00:48]} 41. b7 {[%emt 0:50:59]} Nc6 {[%emt 0:50:
09]} 42. Na8 {[%emt 0:00:22]} Kf7 {[%emt 0:00:00]} 43. Nb6 {[%emt 0:00:00]} Ba6
{[%emt 0:00:00]} 44. b8=Q {[%emt 0:00:00]} Nxb8 {[%emt 0:00:00]} 45. Bxb8 {
[%emt 0:00:00]} Rb7 {[%emt 0:00:00]} 0-1

[Event "FIDE Womens Grand Swiss 2021"]
[Site "Riga"]
[Date "2021.10.27"]
[Round "1.16"]
[White "Danielian, Elina"]
[Black "Arakhamia-Grant, Ketevan"]
[Result "0-1"]
[ECO "A41"]
[WhiteElo "2450"]
[BlackElo "2376"]
[Annotator "ChessBase"]
[PlyCount "56"]
[EventDate "2021.10.27"]
[EventType "swiss"]
[EventCountry "LAT"]
[Tiebreak "Cut1 Buchholz+Sonneborn-Berger (Swiss)"]
[SourceTitle "playchess.com"]
[Source "ChessBase"]
[SourceQuality "1"]
[TimeControl "40/6000+30:20/3000+30:900+30"]

1. d4 {[%emt 0:10:04]} d6 {[%emt 0:10:11]} 2. Nf3 {[%emt 0:00:19]} Nf6 {
[%emt 0:00:10]} 3. g3 {[%emt 0:01:09]} Nbd7 {[%emt 0:00:16]} 4. c4 {[%emt 0:02:
44]} e5 {[%emt 0:00:28]} 5. Bg2 {[%emt 0:00:24]} c6 {[%emt 0:00:25]} 6. Nc3 {
[%emt 0:02:29]} e4 {[%emt 0:01:22]} 7. Ng5 {[%emt 0:05:45]} d5 {[%emt 0:00:13]}
8. cxd5 {[%emt 0:00:54]} cxd5 {[%emt 0:00:07]} 9. O-O {[%emt 0:02:37]} h6 {
[%emt 0:10:20]} 10. Nh3 {[%emt 0:00:04]} Be7 {[%emt 0:05:34]} 11. f3 {[%emt 0:
13:01]} exf3 {[%emt 0:02:43]} 12. Bxf3 {[%emt 0:00:08]} Nb6 {[%emt 0:04:15]}
13. Nf4 {[%emt 0:00:39]} O-O {[%emt 0:11:15]} 14. Qb3 {[%emt 0:00:35]} Be6 {
[%emt 0:04:42]} 15. a4 {[%emt 0:03:03]} a5 {[%emt 0:20:21]} 16. Nxe6 {[%emt 0:
15:16]} fxe6 {[%emt 0:01:14]} 17. Nb5 {[%emt 0:03:44]} Rc8 {[%emt 0:12:38]} 18.
Bf4 {[%emt 0:06:08]} g5 {[%emt 0:04:43]} 19. Be5 {[%emt 0:13:04]} Nc4 {[%emt 0:
00:17]} 20. Qd3 {[%emt 0:08:33]} Kg7 {[%emt 0:04:12]} 21. Bxf6+ {[%emt 0:01:50]
} Rxf6 {[%emt 0:00:32]} 22. Bh5 {[%emt 0:02:12]} Nxb2 {[%emt 0:01:56]} 23. Qb1
{[%emt 0:00:19]} Rxf1+ {[%emt 0:07:25]} 24. Qxf1 {[%emt 0:00:07]} Qf8 {[%emt 0:
05:25]} 25. Qb1 {[%emt 0:00:11]} Qf5 {[%emt 0:00:32]} 26. Qxb2 {[%emt 0:02:19]}
g4 {[%emt 0:00:09]} 27. Rc1 {[%emt 0:15:24]} Bg5 {[%emt 0:01:22]} 28. e3 {
[%emt 0:00:56]} Bxe3+ {[%emt 0:00:20]} 0-1

[Event "FIDE Womens Grand Swiss 2021"]
[Site "Riga"]
[Date "2021.10.27"]
[Round "1.19"]
[White "Kamalidenova, Meruert"]
[Black "Arabidze, Meri"]
[Result "1/2-1/2"]
[ECO "C78"]
[WhiteElo "2339"]
[BlackElo "2441"]
[Annotator "NA"]
[PlyCount "88"]
[EventDate "2021.10.27"]
[EventType "swiss"]
[EventCountry "LAT"]
[Tiebreak "Cut1 Buchholz+Sonneborn-Berger (Swiss)"]
[SourceTitle "playchess.com"]
[Source "ChessBase"]
[SourceQuality "1"]
[TimeControl "40/6000+30:20/3000+30:900+30"]

1. e4 {[%emt 0:10:06]} e5 {[%emt 0:10:10]} 2. Nf3 {[%emt 0:00:07]} Nc6 {
[%emt 0:00:06]} 3. Bb5 {[%emt 0:00:11]} a6 {[%emt 0:00:08]} 4. Ba4 {[%emt 0:00:
05]} Nf6 {[%emt 0:00:11]} 5. O-O {[%emt 0:00:16]} b5 {[%emt 0:00:09]} 6. Bb3 {
[%emt 0:00:07]} Bc5 {[%emt 0:00:09]} 7. a4 {[%emt 0:00:24]} Rb8 {[%emt 0:00:12]
} 8. Nxe5 {[%emt 0:00:51]} Nxe5 {[%emt 0:00:48]} 9. d4 {[%emt 0:00:08]} Bxd4 {
[%emt 0:00:21]} 10. Qxd4 {[%emt 0:00:08]} d6 {[%emt 0:00:07]} 11. f4 {[%emt 0:
00:39]} Nc6 {[%emt 0:04:50]} 12. Qc3 {[%emt 0:00:38]} Bb7 {[%emt 0:01:15]} 13.
axb5 {[%emt 0:00:45]} axb5 {[%emt 0:01:18]} 14. e5 {[%emt 0:02:01]} Ne4 {
[%emt 0:05:47]} 15. Qe3 {[%emt 0:01:46]} Ne7 {[%emt 0:05:40]} 16. Nc3 {[%emt 0:
04:35]} Nxc3 {[%emt 0:13:16]} 17. bxc3 {[%emt 0:04:17]} O-O {[%emt 0:01:46]}
18. f5 {[%emt 0:04:48]} dxe5 {[%emt 0:03:13]} 19. f6 {[%emt 0:05:16]} gxf6 {
[%emt 0:03:09]} 20. Ba3 {[%emt 0:05:14]} Nd5 {[%emt 0:12:22]} 21. Qh6 {[%emt 0:
07:17]} Kh8 {[%emt 0:24:10]} 22. Bxd5 {[%emt 0:04:39]} Bxd5 {[%emt 0:00:47]}
23. Bxf8 {[%emt 0:06:23]} Qxf8 {[%emt 0:00:06]} 24. Qxf6+ {[%emt 0:00:50]} Qg7
{[%emt 0:00:23]} 25. Rae1 {[%emt 0:04:19]} Rg8 {[%emt 0:07:16]} 26. Rxe5 {
[%emt 0:04:36]} Qxf6 {[%emt 0:04:15]} 27. Rxf6 {[%emt 0:00:10]} c6 {[%emt 0:04:
34]} 28. Rf2 {[%emt 0:01:13]} Ra8 {[%emt 0:00:52]} 29. h4 {[%emt 0:01:32]} Ra4
{[%emt 0:00:52]} 30. h5 {[%emt 0:02:54]} h6 {[%emt 0:00:13]} 31. Kh2 {[%emt 0:
02:01]} Rc4 {[%emt 0:00:53]} 32. Re3 {[%emt 0:01:33]} Be6 {[%emt 0:00:52]} 33.
g3 {[%emt 0:04:52]} Rc5 {[%emt 0:01:19]} 34. g4 {[%emt 0:00:14]} Rc4 {[%emt 0:
02:02]} 35. Rg3 {[%emt 0:00:19]} Kg7 {[%emt 0:00:40]} 36. g5 {[%emt 0:08:54]}
Rh4+ {[%emt 0:00:45]} 37. Kg1 {[%emt 0:00:09]} Rxh5 {[%emt 0:00:29]} 38. gxh6+
{[%emt 0:00:07]} Kxh6 {[%emt 0:00:17]} 39. Rh2 {[%emt 0:02:16]} Rxh2 {[%emt 0:
02:06]} 40. Kxh2 {[%emt 0:00:06]} f5 {[%emt 0:01:07]} 41. Kg1 {[%emt 0:51:13]}
Bd5 {[%emt 0:23:43]} 42. Kf2 {[%emt 0:00:00]} Be4 {[%emt 0:01:12]} 43. Ke3 {
[%emt 0:00:00]} Bxc2 {[%emt 0:00:25]} 44. Kf4 {[%emt 0:00:00]} Be4 {[%emt 0:01:
05]} 1/2-1/2

[Event "FIDE Womens Grand Swiss 2021"]
[Site "Riga"]
[Date "2021.10.27"]
[Round "1.21"]
[White "Vantika Agrawal"]
[Black "Munguntuul, Batkhuyag"]
[Result "1/2-1/2"]
[ECO "A06"]
[WhiteElo "2322"]
[BlackElo "2433"]
[Annotator "NA"]
[PlyCount "85"]
[EventDate "2021.10.27"]
[EventType "swiss"]
[EventCountry "LAT"]
[Tiebreak "Cut1 Buchholz+Sonneborn-Berger (Swiss)"]
[SourceTitle "playchess.com"]
[Source "ChessBase"]
[SourceQuality "1"]
[TimeControl "40/6000+30:20/3000+30:900+30"]

1. Nf3 {[%emt 0:10:16]} d5 {[%emt 0:10:09]} 2. g3 {[%emt 0:00:16]} Nc6 {
[%emt 0:00:09]} 3. d4 {[%emt 0:01:08]} Bf5 {[%emt 0:00:18]} 4. Bg2 {[%emt 0:00:
50]} Nb4 {[%emt 0:00:51]} 5. Na3 {[%emt 0:00:37]} e6 {[%emt 0:00:09]} 6. O-O {
[%emt 0:02:38]} Nc6 {[%emt 0:01:20]} 7. Nb1 {[%emt 0:01:03]} Nf6 {[%emt 0:04:
01]} 8. c4 {[%emt 0:05:34]} Be7 {[%emt 0:03:42]} 9. cxd5 {[%emt 0:03:56]} exd5
{[%emt 0:00:57]} 10. Nc3 {[%emt 0:01:02]} Ne4 {[%emt 0:14:49]} 11. Nd2 {
[%emt 0:09:51]} Nxd4 {[%emt 0:20:32]} 12. Qa4+ {[%emt 0:09:11]} Nc6 {[%emt 0:
00:31]} 13. Ndxe4 {[%emt 0:01:41]} dxe4 {[%emt 0:00:38]} 14. Rd1 {[%emt 0:01:
34]} Qc8 {[%emt 0:01:47]} 15. Nd5 {[%emt 0:19:13]} Bd6 {[%emt 0:03:32]} 16. Ne3
{[%emt 0:03:23]} Bg6 {[%emt 0:11:30]} 17. Bxe4 {[%emt 0:04:34]} Bxe4 {[%emt 0:
10:06]} 18. Qxe4+ {[%emt 0:00:10]} Qe6 {[%emt 0:00:12]} 19. Qxe6+ {[%emt 0:00:
57]} fxe6 {[%emt 0:00:02]} 20. Nc4 {[%emt 0:00:19]} O-O-O {[%emt 0:01:14]} 21.
Bg5 {[%emt 0:04:16]} Rd7 {[%emt 0:04:06]} 22. Rac1 {[%emt 0:06:34]} h6 {
[%emt 0:09:28]} 23. Be3 {[%emt 0:01:32]} Rhd8 {[%emt 0:01:46]} 24. Kg2 {
[%emt 0:04:15]} Kb8 {[%emt 0:02:21]} 25. h4 {[%emt 0:08:46]} Be7 {[%emt 0:03:
36]} 26. Rxd7 {[%emt 0:00:32]} Rxd7 {[%emt 0:00:01]} 27. b3 {[%emt 0:07:32]}
Bf6 {[%emt 0:00:18]} 28. h5 {[%emt 0:01:11]} a6 {[%emt 0:02:20]} 29. f4 {
[%emt 0:01:07]} Nb4 {[%emt 0:02:32]} 30. a3 {[%emt 0:00:26]} Nd5 {[%emt 0:00:
07]} 31. Bf2 {[%emt 0:00:18]} b5 {[%emt 0:01:31]} 32. Ne3 {[%emt 0:00:47]} Bb2
{[%emt 0:01:10]} 33. Rc6 {[%emt 0:00:34]} Nxe3+ {[%emt 0:00:05]} 34. Bxe3 {
[%emt 0:00:04]} Rd6 {[%emt 0:00:14]} 35. Rxd6 {[%emt 0:00:34]} cxd6 {[%emt 0:
00:02]} 36. a4 {[%emt 0:00:12]} bxa4 {[%emt 0:00:57]} 37. bxa4 {[%emt 0:00:04]}
Kc7 {[%emt 0:00:09]} 38. Kf3 {[%emt 0:00:39]} Kc6 {[%emt 0:00:43]} 39. Ke4 {
[%emt 0:00:37]} d5+ {[%emt 0:01:08]} 40. Kd3 {[%emt 0:00:01]} e5 {[%emt 0:00:
36]} 41. fxe5 {[%emt 0:26:37]} Bxe5 {[%emt 0:20:58]} 42. g4 {[%emt 0:01:28]}
Kd6 {[%emt 0:09:40]} 43. Bf2 {[%emt 0:05:13]} 1/2-1/2

[Event "FIDE Womens Grand Swiss 2021"]
[Site "Riga"]
[Date "2021.10.27"]
[Round "1.22"]
[White "Zawadzka, Jolanta"]
[Black "Divya Deshmukh"]
[Result "1/2-1/2"]
[ECO "B52"]
[WhiteElo "2428"]
[BlackElo "2305"]
[Annotator "NA"]
[PlyCount "91"]
[EventDate "2021.10.27"]
[EventType "swiss"]
[EventCountry "LAT"]
[Tiebreak "Cut1 Buchholz+Sonneborn-Berger (Swiss)"]
[SourceTitle "playchess.com"]
[Source "ChessBase"]
[SourceQuality "1"]
[TimeControl "40/6000+30:20/3000+30:900+30"]

1. e4 {[%emt 0:10:04]} c5 {[%emt 0:10:03]} 2. Nf3 {[%emt 0:00:07]} d6 {[%emt 0:
00:04]} 3. Bb5+ {[%emt 0:00:07]} Bd7 {[%emt 0:00:07]} 4. Bxd7+ {[%emt 0:00:07]}
Qxd7 {[%emt 0:00:03]} 5. O-O {[%emt 0:00:12]} Nf6 {[%emt 0:00:02]} 6. Re1 {
[%emt 0:00:15]} Nc6 {[%emt 0:00:16]} 7. c3 {[%emt 0:00:14]} e6 {[%emt 0:07:42]}
8. d4 {[%emt 0:00:09]} cxd4 {[%emt 0:00:03]} 9. cxd4 {[%emt 0:00:07]} d5 {
[%emt 0:01:04]} 10. e5 {[%emt 0:00:14]} Ne4 {[%emt 0:00:04]} 11. Nbd2 {[%emt 0:
00:10]} Nxd2 {[%emt 0:00:44]} 12. Bxd2 {[%emt 0:00:13]} Be7 {[%emt 0:01:47]}
13. Rc1 {[%emt 0:00:59]} O-O {[%emt 0:00:18]} 14. Rc3 {[%emt 0:00:37]} f5 {
[%emt 0:17:14]} 15. exf6 {[%emt 0:10:51]} Bxf6 {[%emt 0:00:05]} 16. Rd3 {
[%emt 0:11:59]} Qf7 {[%emt 0:09:56]} 17. Qe2 {[%emt 0:04:10]} e5 {[%emt 0:08:
52]} 18. dxe5 {[%emt 0:10:26]} Nxe5 {[%emt 0:02:08]} 19. Nxe5 {[%emt 0:04:44]}
Bxe5 {[%emt 0:01:38]} 20. Rf3 {[%emt 0:00:19]} Bf6 {[%emt 0:00:20]} 21. Qd3 {
[%emt 0:00:20]} Rfe8 {[%emt 0:10:48]} 22. Rd1 {[%emt 0:03:49]} Rad8 {[%emt 0:
18:58]} 23. h3 {[%emt 0:05:26]} Qg6 {[%emt 0:04:39]} 24. Qb3 {[%emt 0:06:51]}
Kh8 {[%emt 0:03:09]} 25. Bf4 {[%emt 0:04:54]} b6 {[%emt 0:01:54]} 26. Rfd3 {
[%emt 0:05:29]} d4 {[%emt 0:01:20]} 27. a4 {[%emt 0:02:44]} Qf5 {[%emt 0:01:09]
} 28. Bg3 {[%emt 0:02:12]} Rc8 {[%emt 0:02:06]} 29. R3d2 {[%emt 0:04:06]} h6 {
[%emt 0:01:10]} 30. Qa2 {[%emt 0:07:27]} Qe6 {[%emt 0:03:27]} 31. Qxe6 {
[%emt 0:01:04]} Rxe6 {[%emt 0:00:01]} 32. Kf1 {[%emt 0:03:58]} Rc4 {[%emt 0:01:
11]} 33. b3 {[%emt 0:01:08]} Rc3 {[%emt 0:00:11]} 34. Rd3 {[%emt 0:00:19]} Kh7
{[%emt 0:01:41]} 35. Bf4 {[%emt 0:02:12]} Rc2 {[%emt 0:02:38]} 36. Bd2 {
[%emt 0:00:52]} Rec6 {[%emt 0:00:43]} 37. g4 {[%emt 0:02:11]} Rb2 {[%emt 0:00:
48]} 38. Kg2 {[%emt 0:00:45]} Rcc2 {[%emt 0:00:20]} 39. Kg3 {[%emt 0:00:41]} g5
{[%emt 0:00:42]} 40. Kf3 {[%emt 0:01:14]} Kg6 {[%emt 0:00:02]} 41. Be1 {
[%emt 0:53:57]} Kf7 {[%emt 0:25:25]} 42. Ke4 {[%emt 0:00:00]} Re2+ {[%emt 0:10:
38]} 43. Kf3 {[%emt 0:00:00]} Rec2 {[%emt 0:00:47]} 44. Ke4 {[%emt 0:00:00]}
Re2+ {[%emt 0:06:54]} 45. Kf3 {[%emt 0:00:00]} Rec2 {[%emt 0:03:25]} 46. Ke4
1/2-1/2